[Event "Czech Open Rapid G1 2024"]
[Site "Pardubice"]
[Date "2024.07.18"]
[Round "8.32"]
[White "Mojzis, Jaroslav"]
[Black "Park, Inchan"]
[Result "1-0"]
[Annotator "RC"]
[ECO "A50"]
[WhiteElo "2068"]
[BlackElo "1856"]
[PlyCount "71"]
[EventDate "2024.07.16"]
[EventType "swiss"]
[EventCountry "CZE"]
[SourceTitle "playchess.com"]
[Source "ChessBase"]
[SourceQuality "1"]
[TimeControl "1200+10"]

1. d4 {[%emt 0:00:40]} Nf6 {[%emt 0:00:04]} 2. Nf3 {[%emt 0:00:02]} b6 {[%emt 0:00:02]} 3. g3 {[%emt 0:00:02]} Bb7 {[%emt 0:00:01]} 4. Bg2 {[%emt 0:00:01]} g6 {[%emt 0:00:02]} 5. O-O {[%emt 0:00:04]} Bg7 {[%emt 0:00:02]} 6. c4 {[%emt 0:00:09]} O-O {[%emt 0:00:03]} 7. Nc3 {[%emt 0:00:01]} Ne4 {[%emt 0:00:02]} 8. Nxe4 {[%emt 0:00:51]} Bxe4 {[%emt 0:00:10]} 9. Be3 {[%emt 0:00:10]} c5 {[%emt 0:00:10]} 10. Qd2 {[%emt 0:00:10]} Nc6 {[%emt 0:00:10]} 11. dxc5 {[%emt 0:00:10]} bxc5 {[%emt 0:00:10]} 12. Bxc5 {[%emt 0:00:10]} Rb8 {[%emt 0:02:07]} 13. Nd4 {[%emt 0:02:15]} Bxg2 {[%emt 0:01:30]} 14. Kxg2 {[%emt 0:00:11]} Qc7 {[%emt 0:02:16]} 15. Rac1 {[%emt 0:03:54]} d6 {[%emt 0:00:17]} 16. Nb5 {[%emt 0:00:18]} Qb7 {[%emt 0:01:02]} 17. Be3 {[%emt 0:01:00]} a6 {[%emt 0:01:00]} 18. Nc3 {[%emt 0:01:22]} Ne5+ {[%emt 0:01:31]} 19. Qd5 {[%emt 0:02:39]} Nxc4 {[%emt 0:00:55]} 20. Qxb7 {[%emt 0:00:03]} Rxb7 {[%emt 0:00:02]} 21. b3 {[%emt 0:00:07]} Nxe3+ {[%emt 0:00:23]} 22. fxe3 {[%emt 0:00:02]} f5 {[%emt 0:05:11]} 23. Nd5 {[%emt 0:00:51]} e5 {[%emt 0:01:51]} 24. Rc6 {[%emt 0:01:20]} Rd8 {[%emt 0:00:08]} 25. Rfc1 {[%emt 0:01:46]} a5 {[%emt 0:00:52]} 26. Ra6 {[%emt 0:00:44]} Kf7 {[%emt 0:02:11]} 27. Rxa5 {[%emt 0:00:56]} Rdd7 {[%emt 0:00:35]} 28. Rc6 {[%emt 0:01:02]} Ke6 {[%emt 0:00:35]} 29. b4 {[%emt 0:02:09]} Ra7 {[%emt 0:00:36]} 30. Rxa7 {[%emt 0:00:02]} Rxa7 {[%emt 0:00:02]} 31. Nc3 {[%emt 0:00:01]} Kd7 {[%emt 0:00:17]} 32. Rb6 {[%emt 0:00:14]} e4 {[%emt 0:00:33]} 33. Nb5 {[%emt 0:00:22]} Be5 {[%emt 0:00:16]} 34. a3 {[%emt 0:00:06]} g5 {[%emt 0:00:19]} 35. Kf2 {[%emt 0:00:02]} h5 {[%emt 0:00:10]} 36. Nxa7 {[%emt 0:00:10]} 1-0

[Event "Czech Open Rapid G1 2024"]
[Site "Pardubice"]
[Date "2024.07.18"]
[Round "8.33"]
[White "Filindash, Nikita"]
[Black "Dovzhenko, Viktor"]
[Result "1-0"]
[Annotator "RC"]
[ECO "A53"]
[WhiteElo "2007"]
[BlackElo "2044"]
[PlyCount "147"]
[EventDate "2024.07.16"]
[EventType "swiss"]
[EventCountry "CZE"]
[SourceTitle "playchess.com"]
[Source "ChessBase"]
[SourceQuality "1"]
[TimeControl "1200+10"]

1. d4 {[%emt 0:00:02]} d6 {[%emt 0:00:09]} 2. Nf3 {[%emt 0:00:01]} Bg4 {[%emt 0:00:02]} 3. c4 {[%emt 0:00:17]} Nf6 {[%emt 0:00:06]} 4. Nc3 {[%emt 0:00:01]} c6 {[%emt 0:00:05]} 5. e4 {[%emt 0:00:03]} Nbd7 {[%emt 0:00:02]} 6. Be2 {[%emt 0:00:01]} e5 {[%emt 0:00:03]} 7. O-O {[%emt 0:00:15]} Be7 {[%emt 0:00:02]} 8. Be3 {[%emt 0:00:10]} O-O {[%emt 0:00:16]} 9. Qc2 {[%emt 0:00:20]} Re8 {[%emt 0:00:19]} 10. Rfd1 {[%emt 0:00:01]} Qc7 {[%emt 0:00:01]} 11. Rd2 {[%emt 0:00:30]} Bf8 {[%emt 0:00:14]} 12. Rad1 {[%emt 0:00:12]} a6 {[%emt 0:00:02]} 13. h3 {[%emt 0:01:00]} Bh5 {[%emt 0:00:26]} 14. b4 {[%emt 0:01:01]} Bg6 {[%emt 0:01:16]} 15. dxe5 {[%emt 0:07:45]} dxe5 {[%emt 0:00:32]} 16. a3 {[%emt 0:03:17]} a5 {[%emt 0:00:21]} 17. c5 {[%emt 0:00:33]} axb4 {[%emt 0:00:13]} 18. axb4 {[%emt 0:00:01]} Ra3 {[%emt 0:00:08]} 19. Bd3 {[%emt 0:03:49]} Rea8 {[%emt 0:00:32]} 20. Nh4 {[%emt 0:00:29]} b6 {[%emt 0:00:22]} 21. Nxg6 {[%emt 0:00:09]} hxg6 {[%emt 0:00:03]} 22. cxb6 {[%emt 0:00:04]} Nxb6 {[%emt 0:00:03]} 23. Nb5 {[%emt 0:00:05]} Qb7 {[%emt 0:00:26]} 24. Nxa3 {[%emt 0:00:04]} Rxa3 {[%emt 0:00:02]} 25. Bc5 {[%emt 0:00:11]} Bxc5 {[%emt 0:00:51]} 26. Qxc5 {[%emt 0:00:24]} Nbd7 {[%emt 0:00:03]} 27. Qe7 {[%emt 0:00:08]} Rc3 {[%emt 0:02:16]} 28. Bc4 {[%emt 0:01:04]} Rxc4 {[%emt 0:02:52]} 29. Rxd7 {[%emt 0:00:02]} Nxd7 {[%emt 0:00:06]} 30. Rxd7 {[%emt 0:00:01]} Qxd7 {[%emt 0:00:02]} 31. Qxd7 {[%emt 0:00:02]} Rxe4 {[%emt 0:00:05]} 32. Qe8+ {[%emt 0:00:01]} Kh7 {[%emt 0:00:03]} 33. Qxc6 {[%emt 0:00:04]} Rxb4 {[%emt 0:00:02]} 34. Qd5 {[%emt 0:00:01]} f6 {[%emt 0:00:06]} 35. g3 {[%emt 0:00:06]} Rd4 {[%emt 0:00:01]} 36. Qb7 {[%emt 0:00:02]} g5 {[%emt 0:00:14]} 37. Qf7 {[%emt 0:00:04]} Kh6 {[%emt 0:00:23]} 38. Kf1 {[%emt 0:00:04]} Rb4 {[%emt 0:00:14]} 39. Qf8 {[%emt 0:00:28]} Rd4 {[%emt 0:00:14]} 40. Ke2 {[%emt 0:00:05]} Kg6 {[%emt 0:00:19]} 41. Kf3 {[%emt 0:00:25]} Rd3+ {[%emt 0:00:09]} 42. Kg4 {[%emt 0:01:25]} Rd4+ {[%emt 0:00:02]} 43. Kf3 {[%emt 0:01:14]} Rd3+ {[%emt 0:00:01]} 44. Kg2 {[%emt 0:00:01]} Rd4 {[%emt 0:00:03]} 45. g4 {[%emt 0:00:33]} Kh7 {[%emt 0:00:52]} 46. Kg3 {[%emt 0:00:06]} Rd3+ {[%emt 0:00:21]} 47. Kg2 {[%emt 0:00:01]} Rd4 {[%emt 0:00:02]} 48. f3 {[%emt 0:00:03]} Rd3 {[%emt 0:01:33]} 49. Qe8 {[%emt 0:00:04]} Rd4 {[%emt 0:00:09]} 50. h4 {[%emt 0:00:42]} gxh4 {[%emt 0:00:08]} 51. g5 {[%emt 0:00:09]} fxg5 {[%emt 0:03:18]} 52. Qh5+ {[%emt 0:00:04]} Kg8 {[%emt 0:00:01]} 53. Qe8+ {[%emt 0:00:38]} Kh7 {[%emt 0:00:02]} 54. Qxe5 {[%emt 0:00:05]} Rd2+ {[%emt 0:01:05]} 55. Kh3 {[%emt 0:00:02]} Rf2 {[%emt 0:00:15]} 56. Qe4+ {[%emt 0:00:37]} Kh6 {[%emt 0:00:15]} 57. Kg4 {[%emt 0:00:17]} Rg2+ {[%emt 0:00:01]} 58. Kf5 {[%emt 0:00:03]} h3 {[%emt 0:00:07]} 59. Qe6+ {[%emt 0:00:06]} Kh5 {[%emt 0:00:34]} 60. Qg6+ {[%emt 0:00:20]} Kh4 {[%emt 0:00:01]} 61. f4 {[%emt 0:00:13]} h2 {[%emt 0:00:17]} 62. Qh7+ {[%emt 0:00:13]} Kg3 {[%emt 0:00:03]} 63. Qh5 {[%emt 0:00:03]} Kf2 {[%emt 0:00:38]} 64. fxg5 {[%emt 0:00:07]} Kg1 {[%emt 0:00:42]} 65. Qd1+ {[%emt 0:00:01]} Kf2 {[%emt 0:00:01]} 66. Kf4 {[%emt 0:00:04]} Rxg5 {[%emt 0:06:08]} 67. Kxg5 {[%emt 0:00:02]} Kg2 {[%emt 0:00:01]} 68. Qg4+ {[%emt 0:00:02]} Kf1 {[%emt 0:00:13]} 69. Qh3+ {[%emt 0:00:08]} Kg1 {[%emt 0:00:04]} 70. Qg3+ {[%emt 0:00:00]} Kh1 {[%emt 0:00:02]} 71. Qf2 {[%emt 0:00:04]} g6 {[%emt 0:00:01]} 72. Kg4 {[%emt 0:00:01]} g5 {[%emt 0:00:01]} 73. Kg3 {[%emt 0:00:01]} g4 {[%emt 0:00:02]} 74. Qxh2# {[%emt 0:00:05]} 1-0

[Event "Czech Open Rapid G1 2024"]
[Site "Pardubice"]
[Date "2024.07.18"]
[Round "8.34"]
[White "Novotny, Josef"]
[Black "Sichrovsky, Tomas"]
[Result "1-0"]
[Annotator "RC"]
[ECO "A00"]
[WhiteElo "2033"]
[BlackElo "1933"]
[PlyCount "75"]
[EventDate "2024.07.16"]
[EventType "swiss"]
[EventCountry "CZE"]
[SourceTitle "playchess.com"]
[Source "ChessBase"]
[SourceQuality "1"]
[TimeControl "1200+10"]

1. e3 {[%emt 0:00:03]} d5 {[%emt 0:00:06]} 2. d3 {[%emt 0:00:03]} c5 {[%emt 0:00:02]} 3. h3 {[%emt 0:00:04]} Nc6 {[%emt 0:00:02]} 4. Nf3 {[%emt 0:00:02]} e5 {[%emt 0:00:02]} 5. Nc3 {[%emt 0:00:03]} Nf6 {[%emt 0:00:02]} 6. Be2 {[%emt 0:00:03]} Be7 {[%emt 0:00:28]} 7. a3 {[%emt 0:00:03]} O-O {[%emt 0:00:05]} 8. g4 {[%emt 0:00:02]} Ne8 {[%emt 0:00:15]} 9. e4 {[%emt 0:00:07]} Be6 {[%emt 0:00:30]} 10. Bd2 {[%emt 0:00:18]} f6 {[%emt 0:00:24]} 11. Rg1 {[%emt 0:00:32]} Nd4 {[%emt 0:00:46]} 12. Nxd4 {[%emt 0:00:22]} cxd4 {[%emt 0:00:05]} 13. Nxd5 {[%emt 0:00:03]} Bxd5 {[%emt 0:00:47]} 14. exd5 {[%emt 0:00:02]} Qxd5 {[%emt 0:00:06]} 15. Bf3 {[%emt 0:00:02]} Qd7 {[%emt 0:01:27]} 16. Be4 {[%emt 0:00:16]} Nd6 {[%emt 0:00:08]} 17. Bd5+ {[%emt 0:00:11]} Kh8 {[%emt 0:00:01]} 18. Qf3 {[%emt 0:00:03]} Rad8 {[%emt 0:00:57]} 19. Bb4 {[%emt 0:00:24]} f5 {[%emt 0:02:32]} 20. O-O-O {[%emt 0:02:37]} e4 21. dxe4 {[%emt 0:00:09]} fxe4 {[%emt 0:01:42]} 22. Qe2 {[%emt 0:00:40]} Bg5+ {[%emt 0:00:54]} 23. Kb1 {[%emt 0:00:03]} e3 {[%emt 0:01:06]} 24. fxe3 {[%emt 0:00:08]} dxe3 {[%emt 0:00:03]} 25. Bf3 {[%emt 0:01:25]} Qe6 {[%emt 0:01:13]} 26. Rd5 {[%emt 0:01:52]} Bf4 {[%emt 0:01:06]} 27. Rgd1 {[%emt 0:00:05]} Rfe8 {[%emt 0:00:20]} 28. Bc3 {[%emt 0:01:08]} a6 {[%emt 0:01:41]} 29. Rh5 {[%emt 0:00:40]} Nb5 {[%emt 0:02:48]} 30. Be1 {[%emt 0:01:22]} Qb6 {[%emt 0:02:25]} 31. Ka2 {[%emt 0:01:23]} Rxd1 {[%emt 0:00:36]} 32. Qxd1 {[%emt 0:00:02]} Rd8 {[%emt 0:00:06]} 33. Rd5 {[%emt 0:00:41]} Qe6 {[%emt 0:00:16]} 34. c4 {[%emt 0:00:07]} Rxd5 {[%emt 0:00:30]} 35. Bxd5 {[%emt 0:00:09]} e2 {[%emt 0:00:13]} 36. Qd3 {[%emt 0:00:25]} Nc3+ 37. bxc3 {[%emt 0:00:15]} Qe5 {[%emt 0:00:46]} 38. Be4 {[%emt 0:00:34]} 1-0

[Event "Czech Open Rapid G1 2024"]
[Site "Pardubice"]
[Date "2024.07.18"]
[Round "8.35"]
[White "Novotny, Dominik"]
[Black "Nespurek, Jakub"]
[Result "1-0"]
[Annotator "RC"]
[ECO "C29"]
[WhiteElo "1921"]
[BlackElo "1876"]
[PlyCount "53"]
[EventDate "2024.07.16"]
[EventType "swiss"]
[EventCountry "CZE"]
[SourceTitle "playchess.com"]
[Source "ChessBase"]
[SourceQuality "1"]
[TimeControl "1200+10"]

1. e4 {[%emt 0:00:02]} e5 {[%emt 0:00:01]} 2. Nc3 {[%emt 0:00:06]} Nf6 {[%emt 0:00:02]} 3. f4 {[%emt 0:00:03]} d5 {[%emt 0:00:01]} 4. fxe5 {[%emt 0:00:02]} Nxe4 {[%emt 0:00:02]} 5. Qf3 {[%emt 0:00:02]} Nxc3 {[%emt 0:00:02]} 6. bxc3 {[%emt 0:00:02]} c5 {[%emt 0:00:37]} 7. Qg3 {[%emt 0:00:21]} f6 {[%emt 0:02:49]} 8. Nf3 {[%emt 0:01:51]} fxe5 {[%emt 0:00:48]} 9. Nxe5 {[%emt 0:02:18]} Qf6 {[%emt 0:01:05]} 10. d4 {[%emt 0:05:27]} Bd6 {[%emt 0:00:45]} 11. Bb5+ {[%emt 0:05:10]} Bd7 {[%emt 0:00:53]} 12. Bg5 {[%emt 0:00:48]} Bxe5 {[%emt 0:03:59]} 13. dxe5 {[%emt 0:00:31]} Qf7 {[%emt 0:01:44]} 14. Rf1 {[%emt 0:03:33]} Qe6 {[%emt 0:00:26]} 15. Bd3 {[%emt 0:01:05]} Nc6 {[%emt 0:00:33]} 16. O-O-O {[%emt 0:00:11]} Ne7 {[%emt 0:07:18]} 17. Bxe7 {[%emt 0:01:03]} Qxe7 {[%emt 0:00:12]} 18. e6 {[%emt 0:00:06]} Bc6 {[%emt 0:01:08]} 19. Rf7 {[%emt 0:00:17]} Qxe6 {[%emt 0:00:14]} 20. Rxg7 {[%emt 0:00:09]} Qh6+ {[%emt 0:00:22]} 21. Kb1 {[%emt 0:00:01]} Bd7 {[%emt 0:00:12]} 22. Re1+ {[%emt 0:00:12]} Kd8 {[%emt 0:00:08]} 23. Ree7 {[%emt 0:00:23]} Qb6+ {[%emt 0:00:14]} 24. Ka1 {[%emt 0:00:01]} Bc8 {[%emt 0:00:18]} 25. Qe5 {[%emt 0:00:16]} Qc6 {[%emt 0:00:12]} 26. Rc7 {[%emt 0:00:15]} Re8 {[%emt 0:00:12]} 27. Qg5+ {[%emt 0:00:06]} 1-0

[Event "Czech Open Rapid G1 2024"]
[Site "Pardubice"]
[Date "2024.07.18"]
[Round "8.36"]
[White "Pejrimovska, Viola Ruby"]
[Black "Flasar, Jaroslav"]
[Result "1-0"]
[Annotator "RC"]
[ECO "B20"]
[WhiteElo "1780"]
[BlackElo "2012"]
[PlyCount "55"]
[EventDate "2024.07.16"]
[EventType "swiss"]
[EventCountry "CZE"]
[SourceTitle "playchess.com"]
[Source "ChessBase"]
[SourceQuality "1"]
[TimeControl "1200+10"]

1. e4 {[%emt 0:00:01]} c5 {[%emt 0:00:02]} 2. b4 {[%emt 0:00:01]} cxb4 {[%emt 0:00:06]} 3. a3 {[%emt 0:00:02]} e6 {[%emt 0:00:06]} 4. axb4 {[%emt 0:00:01]} Bxb4 {[%emt 0:00:02]} 5. c3 {[%emt 0:00:02]} Be7 {[%emt 0:00:02]} 6. d4 {[%emt 0:00:01]} d6 {[%emt 0:00:40]} 7. f4 {[%emt 0:00:11]} Nf6 {[%emt 0:00:32]} 8. Bd3 {[%emt 0:00:00]} O-O {[%emt 0:00:05]} 9. Nf3 {[%emt 0:00:02]} b6 {[%emt 0:00:42]} 10. O-O {[%emt 0:00:06]} Bb7 {[%emt 0:00:02]} 11. Qe1 {[%emt 0:06:59]} Nc6 {[%emt 0:01:15]} 12. e5 {[%emt 0:01:15]} dxe5 {[%emt 0:00:06]} 13. fxe5 {[%emt 0:00:02]} Nd7 {[%emt 0:00:12]} 14. Qg3 {[%emt 0:01:17]} g6 {[%emt 0:01:04]} 15. Bh6 {[%emt 0:00:34]} Re8 {[%emt 0:00:02]} 16. Ng5 {[%emt 0:00:23]} Bxg5 {[%emt 0:03:08]} 17. Bxg5 {[%emt 0:00:29]} Qc7 {[%emt 0:00:05]} 18. Qh4 {[%emt 0:02:15]} Ncxe5 {[%emt 0:00:30]} 19. dxe5 {[%emt 0:00:27]} Qxe5 {[%emt 0:00:03]} 20. Rxf7 {[%emt 0:01:47]} h6 {[%emt 0:03:23]} 21. Qxh6 {[%emt 0:05:42]} Nf8 {[%emt 0:01:53]} 22. Bxg6 {[%emt 0:00:28]} Qh8 {[%emt 0:00:59]} 23. Qxh8+ {[%emt 0:00:20]} Kxh8 {[%emt 0:00:01]} 24. Bf6+ {[%emt 0:00:03]} Kg8 {[%emt 0:00:02]} 25. Rg7+ {[%emt 0:00:01]} Kh8 {[%emt 0:00:01]} 26. Rxb7+ {[%emt 0:00:03]} Kg8 {[%emt 0:00:02]} 27. Rg7+ {[%emt 0:00:34]} Kh8 {[%emt 0:00:02]} 28. Rgxa7+ {[%emt 0:00:04]} 1-0

[Event "Czech Open Rapid G1 2024"]
[Site "Pardubice"]
[Date "2024.07.18"]
[Round "9.2"]
[White "Kulon, Klaudia"]
[Black "Navara, David"]
[Result "0-1"]
[Annotator "TA"]
[ECO "A20"]
[WhiteElo "2380"]
[BlackElo "2682"]
[PlyCount "82"]
[EventDate "2024.07.16"]
[EventType "swiss"]
[EventCountry "CZE"]
[SourceTitle "playchess.com"]
[Source "ChessBase"]
[SourceQuality "1"]
[TimeControl "1200+10"]

{[%evp 9,82,0,0,-9,0,6,0,-27,-23,-15,-15,-79,-64,-55,-54,-65,-67,-70,-78,-75,-58,-45,-23,-25,-26,-158,-158,-166,-162,-170,-170,-178,-178,-178,-178,-289,-309,-314,-265,-351,-341,-330,-337,-430,-426,-570,-556,-545,-518,-829,-841,-818,-817,-710,-661,-856,-817,-815,-811,-852,-821,-827,-800,-968,-916,-981,-953,-1408,-1355,-1448,-1371,-29987,-29988,-29988,-29989]} 1. c4 {[%emt 0:00:01]} e5 {[%emt 0:00:01]} 2. g3 {[%emt 0:00:01]} c6 {[%emt 0:00:15]} 3. Bg2 {[%emt 0:00:02]} d5 {[%emt 0:00:02]} 4. cxd5 {[%emt 0:00:18]} cxd5 {[%emt 0:00:02]} 5. d4 {[%emt 0:00:38]} e4 {[%emt 0:00:05]} 6. f3 {[%emt 0:00:07]} Nf6 {[%emt 0:01:54]} 7. Nc3 {[%emt 0:00:02][%cal Rf3e4]} Bb4 {[%emt 0:00:05]} 8. Bd2 {[%emt 0:00:27] Die Stellung ist ausgeglichen.} Bxc3 {[%emt 0:03:20]} 9. Bxc3 {[%emt 0:00:22] Weiss ist schwach auf den weissen Feldern} O-O {[%emt 0:00:06]} 10. f4 {[%emt 0:01:15]} (10. Nh3 $11) 10... Nc6 $17 {[%emt 0:00:49]} 11. e3 {[%emt 0:00:05]} b5 {[%emt 0:01:51][%cal Bb7b5,Bb5b4][%mdl 32]} 12. a3 {[%emt 0:00:01]} a5 {[%emt 0:00:05]} 13. h3 {[%emt 0:00:03]} h5 {[%emt 0:00:02]} 14. Ne2 {[%emt 0:00:08]} Ra6 {[%emt 0:01:29]} 15. O-O {[%emt 0:00:11]} b4 {[%emt 0:01:41]} 16. Bd2 {[%emt 0:00:01]} Rb6 {[%emt 0:00:28]} 17. a4 {[%emt 0:00:52] [#] Schwarz führt seinen Vorteil zum Gewinn.} (17. axb4 $11 {hält das Gleichgewicht.} axb4 18. Nc1) 17... Ne7 $1 {[%emt 0:00:38][%cal Bc6e7,Be7f5,Bf5h4,Bh4f3][%mdl 32] Schwarz steht aktiver.} 18. Rc1 {[%emt 0:00:23]} Nf5 {[%emt 0:00:28]} 19. Kh2 {[%emt 0:01:59]} Ba6 {[%emt 0:00:48]} 20. Rg1 {[%emt 0:00:08]} Nd7 {[%emt 0:01:07] Verhindert Rc5} 21. Bf1 {[%emt 0:03:09]} Re8 {[%emt 0:00:18]} 22. g4 {[%emt 0:01:15]} (22. b3 $142) 22... Nh4 $19 {[%emt 0:01:04] Ein dynamisches Springerpaar.} 23. g5 {[%emt 0:02:25]} Nf3+ {[%emt 0:00:11]} 24. Kh1 {[%emt 0:00:01]} Nxg1 {[%emt 0:00:35]} 25. Kxg1 {[%emt 0:00:01]} Ree6 {[%emt 0:02:47]} 26. h4 {[%emt 0:00:05]} Rec6 {[%emt 0:00:37]} 27. f5 {[%emt 0:00:33]} Bxe2 {[%emt 0:00:41]} 28. Bxe2 {[%emt 0:00:03]} Qc7 {[%emt 0:00:01]} 29. Kg2 {[%emt 0:00:10] Verhindert Qg3+.} (29. Bb5 $142 Qg3+ 30. Kf1 Qh3+ 31. Kg1 Rxc1 32. Qxc1 Qg4+ (32... Qxf5 33. Qc8+ Kh7 34. Qxd7 $11) 33. Kf1 Qxf5+ 34. Ke1) 29... Rxc1 {[%emt 0:00:15]} 30. Bxc1 {[%emt 0:00:10]} Rc6 {[%emt 0:00:39]} 31. Bd2 {[%emt 0:00:01]} Rc2 {[%emt 0:00:03]} 32. b3 {[%emt 0:00:17]} Rb2 {[%emt 0:00:09] [#] Droht ...Qc2 und aus.} 33. Be1 {[%emt 0:00:40]} Qc2 {[%emt 0:00:11]} 34. Qxc2 {[%emt 0:00:03]} Rxc2 {[%emt 0:00:02][%mdl 4096] Endspiel. KRN-KB} 35. Kf1 {[%emt 0:00:01]} Rc1 {[%emt 0:00:31]} 36. Bb5 {[%emt 0:00:14]} Nb6 {[%emt 0:00:03]} 37. Ke2 {[%emt 0:00:02]} Rb1 {[%emt 0:00:02]} 38. Bg3 {[%emt 0:00:25]} Rxb3 {[%emt 0:00:29] Und jetzt ...Nc4 wäre schön.} 39. Bc7 {[%emt 0:00:55]} Nc4 {[%emt 0:00:01]} 40. Bf4 {[%emt 0:00:01]} Rb2+ {[%emt 0:00:07]} 41. Kd1 {[%emt 0:00:02]} b3 {[%emt 0:00:09] Gewichteter Fehlerwert: Weiß=0.85/Schwarz=0.03 (makellos) .  Fehler:       	Weiß=4     	---        Ungenau:       	Weiß=3     	---        OK:         	Weiß=5     	Schwarz=13    Bester:       	---       	Schwarz=4     Stark:        	---       	Schwarz=1} 0-1

[Event "Czech Open Rapid G1 2024"]
[Site "Pardubice"]
[Date "2024.07.18"]
[Round "9.3"]
[White "Nisipeanu, Liviu-Dieter"]
[Black "Piesik, Piotr"]
[Result "1/2-1/2"]
[Annotator "TA"]
[ECO "C01"]
[WhiteElo "2583"]
[BlackElo "2415"]
[PlyCount "81"]
[EventDate "2024.07.16"]
[EventType "swiss"]
[EventCountry "CZE"]
[SourceTitle "playchess.com"]
[Source "ChessBase"]
[SourceQuality "1"]
[TimeControl "1200+10"]

{[%evp 11,81,12,7,-6,24,19,24,21,27,8,15,-25,21,11,66,0,0,0,0,0,0,0,0,0,0,0,0,0,0,-1,15,0,11,0,0,-37,4,0,24,25,35,49,37,44,40,0,0,0,0,0,0,-35,-33,-45,-39,-31,-45,-39,0,0,0,0,0,0,0,0,2,2,45,36,33,0]} 1. e4 {[%emt 0:00:03]} e6 {[%emt 0:00:02]} 2. d4 {[%emt 0:00:25]} d5 {[%emt 0:00:01]} 3. exd5 {[%emt 0:00:02]} exd5 {[%emt 0:00:01]} 4. Nf3 {[%emt 0:00:01]} Bd6 {[%emt 0:00:03]} 5. c4 {[%emt 0:00:09][%cal Bc2c4,Bc4c5][%mdl 32]} Nf6 {[%emt 0:00:02]} 6. Nc3 {[%emt 0:01:27]} O-O {[%emt 0:00:05]} 7. c5 {[%emt 0:00:02]} Re8+ {[%emt 0:00:01]} 8. Be2 {[%emt 0:00:01]} Bf8 {[%emt 0:00:01]} 9. O-O {[%emt 0:00:03] White has an edge.} Bf5 {[%emt 0:01:23]} 10. Bg5 {[%emt 0:01:41]} c6 {[%emt 0:00:36]} 11. Ne5 {[%emt 0:01:06]} h6 {[%emt 0:01:18]} (11... Bxc5 {should be considered.} 12. Nxf7 Qc7) 12. Bh4 {[%emt 0:00:16]} Bxc5 {[%emt 0:02:57]} 13. Nxf7 {[%emt 0:00:41] White is more active.} (13. Bh5 $1 $14 g6 14. Bg4) 13... Kxf7 $11 {[%emt 0:00:01]} 14. dxc5 {[%emt 0:00:01]} Nbd7 {[%emt 0:00:05]} 15. b4 {[%emt 0:01:16]} a5 {[%emt 0:00:39]} 16. a3 {[%emt 0:01:56][%cal Ba2a3,Ba3b4,Bb4b5][%mdl 32]} axb4 {[%emt 0:01:16]} 17. axb4 {[%emt 0:00:02]} Rxa1 {[%emt 0:00:01]} 18. Qxa1 {[%emt 0:00:01]} Qe7 {[%emt 0:00:07]} 19. Rd1 {[%emt 0:02:12]} Ne5 {[%emt 0:01:37]} 20. Bf1 {[%emt 0:01:51]} Kg8 {[%emt 0:02:33]} (20... g5 $5 21. Bg3 $8 Nh5 $11) 21. f3 {[%emt 0:00:29][%cal Oc3d5]} Qf7 {[%emt 0:00:48]} 22. b5 {[%emt 0:03:17]} Nfd7 {[%emt 0:01:25]} 23. Qa7 {[%emt 0:00:40]} Nf8 {[%emt 0:01:40]} 24. Bg3 {[%emt 0:00:36]} Re7 {[%emt 0:01:32]} 25. Qa4 {[%emt 0:01:15]} Qf6 {[%emt 0:01:41][%cal Oe5f3]} 26. Ne2 {[%emt 0:01:22]} Nc4 {[%emt 0:00:51]} 27. bxc6 {[%emt 0:01:01]} bxc6 28. Qa1 {[%emt 0:00:20]} Ne3 {[%emt 0:00:20] Excellent horsemanship.} 29. Qxf6 {[%emt 0:00:04]} gxf6 {[%emt 0:00:01]} 30. Rd2 {[%emt 0:00:51]} Ra7 {[%emt 0:00:52] [#] aiming for ...Ra1.} 31. Kf2 {[%emt 0:00:27]} Nc4 {[%emt 0:00:20]} 32. Rd1 {[%emt 0:00:34]} Ra2 {[%emt 0:00:01]} 33. Bf4 {[%emt 0:00:05]} h5 {[%emt 0:00:29]} 34. Kg3 {[%emt 0:00:03]} Ng6 {[%emt 0:00:01]} 35. h4 {[%emt 0:00:11]} Bc2 {[%emt 0:01:28]} 36. Rc1 {[%emt 0:00:07] Nd4 is the strong threat.} Nce5 {[%emt 0:00:41]} 37. Nd4 {[%emt 0:00:20]} (37. Nc3 $5 Rb2 $8 38. Ne2 $11) 37... Bd3 {[%emt 0:00:13]} 38. Bxe5 {[%emt 0:00:19]} Bxf1 $1 {[%emt 0:00:21]} 39. Rxf1 {[%emt 0:00:03]} fxe5 {[%emt 0:00:43]} 40. Nxc6 {[%emt 0:00:01] And now Re1 would win.} Rc2 {[%emt 0:00:02]} 41. Nb4 {[%emt 0:00:09] Weighted Error Value: White=0.09 (flawless) /Black=0.10 (very precise) .  Mistake:       	White=1     	Black=2      Inaccurate:     	White=5     	Black=4      OK:         	White=15    	Black=16     Best:        	White=2     	Black=1      Strong:       	---       	Black=1} 1/2-1/2